fUST/lending_fUST_20251230
["ID","MTS","AMOUNT","RATE_DAILY","PERIOD"]
[400041728,1767048639693,-284.44472802,0.00021917,2]
[400041729,1767048639702,-415.36593718,0.00021917,2]
[400041730,1767048639712,-210.12873179,0.00021917,2]
[400041731,1767048639721,-241.72242359,0.00021917,2]
[400041732,1767048639731,-474.13507893,0.00021917,2]
[400041733,1767048639740,-183.26107061,0.00021917,2]
[400041734,1767048639749,-438.8658737,0.00021917,2]
[400041735,1767048639759,-216.23520641,0.00021917,2]
[400041736,1767048639768,-174.63658247,0.00021917,2]
[400041738,1767048639778,-158.60174501,0.00021917,2]
[400041739,1767048639787,-395.12698527,0.00021917,2]
[400041740,1767048639797,-239.67666409,0.00021917,2]
[400041741,1767048639806,-469.4075144,0.00021917,2]
[400041742,1767048639815,-500.0,0.00021917,2]
[400041743,1767048639825,-268.81198579,0.00021917,2]
[400041744,1767048639834,-460.17636895,0.00021917,2]
[400041746,1767048639843,-407.85844134,0.00021917,2]
[400041748,1767048639852,-260.5348626,0.00021917,2]
[400041750,1767048639861,-517.85628227,0.00021917,2]
[400041752,1767048639871,-469.94931329,0.00021917,2]
[400041754,1767048639880,-328.30768993,0.00021917,2]
[400041755,1767048639889,-568.76309973,0.00021917,2]
[400041757,1767048639898,-191.35979133,0.00021917,2]
[400041758,1767048639907,-243.54881724,0.00021917,2]
[400041759,1767048639916,-407.86933882,0.00021917,2]
[400041760,1767048639926,-201.43304431,0.00021917,2]
[400041761,1767048639935,-500.0,0.00021917,2]
[400041762,1767048639944,-500.0,0.00021917,2]
[400041763,1767048639953,-234.48823972,0.00021917,2]
[400041764,1767048639962,-244.31159298,0.00021917,2]
[400041766,1767048639971,-499.53568973,0.00021917,2]
[400041768,1767048639980,-1297.96752771,0.00021917,2]
[400041769,1767048639990,-488.54130711,0.00021917,2]
[400041771,1767048639999,-314.06516067,0.00021917,2]
[400041772,1767048640008,-269.57121711,0.00021917,2]
[400041773,1767048640017,-163.25279806,0.00021917,2]
[400041774,1767048640027,-164.63967481,0.00021917,2]
[400041775,1767048640036,-494.38316648,0.00021917,2]
[400041776,1767048640045,-280.07760729,0.00021917,2]
[400041777,1767048640055,-476.00274667,0.00021917,2]
[400041778,1767048640065,-161.69636147,0.00021917,2]
[400041780,1767048640074,-262.92534721,0.00021917,2]
[400041782,1767048640083,-500.0,0.00021917,2]
[400041784,1767048640093,-500.0,0.00021917,2]
[400041785,1767048640103,-347.21846073,0.00021917,2]
[400041786,1767048640112,-203.24190717,0.00021917,2]
[400041787,1767048640123,-406.89272503,0.00021917,2]
[400041789,1767048640132,-251.37829777,0.00021917,2]
[400041791,1767048640141,-381.44270376,0.00021917,2]
[400041793,1767048640150,-451.7193611,0.00021917,2]
[400041795,1767048640159,-319.68433654,0.00021917,2]
[400041797,1767048640168,-467.99356264,0.00021917,2]
[400041799,1767048640177,-202.31376663,0.00021917,2]
[400041801,1767048640186,-500.0,0.00021917,2]
[400041803,1767048640195,-465.19135142,0.00021917,2]
[400041805,1767048640204,-420.40948282,0.00021917,2]
[400041807,1767048640215,-500.0,0.00021917,2]
[400041808,1767048640225,-1000.0,0.00021917,2]
[400041811,1767048640235,-500.0,0.00021917,2]
[400041813,1767048640245,-367.57,0.00021917,2]
[400041814,1767048640254,-374.95658771,0.00021917,2]
[400041816,1767048640264,-445.80989693,0.00021917,2]
[400041819,1767048640273,-309.43647054,0.00021917,2]
[400041820,1767048640282,-500.0,0.00021917,2]
[400041822,1767048640292,-213.06669978,0.00021917,2]
[400041824,1767048640300,-186.64044942,0.00021917,2]
[400041826,1767048640309,-434.87120027,0.00021917,2]
[400041829,1767048640320,-502.9,0.00021917,2]
[400041830,1767048640330,-164.72537935,0.00021917,2]
[400041832,1767048640339,-499.59276763,0.00021917,2]
[400041834,1767048640348,-230.94001368,0.00021917,2]
[400041836,1767048640357,-206.2591174,0.00021917,2]
[400041838,1767048640367,-363.91423782,0.00021917,2]
[400041840,1767048640376,-351.67604569,0.00021917,2]
[400041842,1767048640387,-419.94997901,0.00021917,2]
[400041844,1767048640396,-470.89585768,0.00021917,2]
[400041846,1767048640405,-327.42795179,0.00021917,2]
[400041848,1767048640414,-217.86653738,0.00021917,2]
[400041850,1767048640424,-249.9681414,0.00021917,2]
[400041852,1767048640432,-500.0,0.00021917,2]
[400041854,1767048640442,-266.12580852,0.00021917,2]
[400041856,1767048640454,-454.77996909,0.00021917,2]
[400041858,1767048640463,-500.0,0.00021917,2]
[400041860,1767048640472,-460.4,0.00021917,2]
[400041862,1767048640481,-501.89029961,0.00021917,2]
[400041864,1767048640491,-208.37773591,0.00021917,2]
[400041866,1767048640500,-296.36211743,0.00021917,2]
[400041868,1767048640509,-312.19237023,0.00021917,2]
[400041870,1767048640520,-281.13326683,0.00021917,2]
[400041872,1767048640530,-441.60555769,0.00021917,2]
[400041874,1767048640539,-181.669416,0.00021917,2]
[400041876,1767048640548,-276.4405767,0.00021917,2]
[400041878,1767048640557,-500.0,0.00021917,2]
[400041880,1767048640569,-320.64526273,0.00021917,2]
[400041882,1767048640578,-189.07333693,0.00021917,2]
[400041884,1767048640588,-229.88879352,0.00021917,2]
[400041886,1767048640596,-322.21446513,0.00021917,2]
[400041888,1767048640605,-273.35091311,0.00021917,2]
[400041890,1767048640615,-471.79543403,0.00021917,2]
[400041892,1767048640624,-327.11223151,0.00021917,2]
[400041894,1767048640634,-474.25212021,0.00021917,2]
[400041896,1767048640643,-464.38811206,0.00021917,2]
[400041898,1767048640653,-500.0,0.00021917,2]
[400041900,1767048640661,-449.40365979,0.00021917,2]
[400041902,1767048640671,-596.55559848,0.00021917,2]
[400041904,1767048640680,-293.1369972,0.00021917,2]
[400041906,1767048640689,-442.47098096,0.00021917,2]
[400041908,1767048640699,-489.5909872,0.00021917,2]
[400041909,1767048640708,-333.99912007,0.00021917,2]
[400041911,1767048640720,-500.0,0.00021917,2]
[400041913,1767048640731,-421.70731069,0.00021917,2]
[400041915,1767048640742,-319.68950835,0.00021917,2]
[400041917,1767048640752,-294.57638844,0.00021917,2]
[400041919,1767048640761,-471.93883825,0.00021917,2]
[400041921,1767048640770,-231.02510062,0.00021917,2]
[400041923,1767048640780,-186.48937392,0.00021917,2]
[400041925,1767048640789,-500.0,0.00021917,2]
[400041927,1767048640798,-486.63011465,0.00021917,2]
[400041929,1767048640808,-331.17439079,0.00021917,2]
[400041931,1767048640817,-362.31823846,0.00021917,2]
[400041933,1767048640826,-427.64161233,0.00021917,2]
[400041935,1767048640835,-501.19543339,0.00021917,2]
[400041937,1767048640844,-268.15903385,0.00021917,2]
[400041939,1767048640853,-194.87945958,0.00021917,2]
[400041941,1767048640862,-496.33962389,0.00021917,2]
[400041943,1767048640872,-184.33391286,0.00021917,2]
[400041945,1767048640882,-500.0,0.00021917,2]
[400041947,1767048640892,-178.50369212,0.00021917,2]
[400041949,1767048640901,-333.56161096,0.00021917,2]
[400041951,1767048640911,-370.63190419,0.00021917,2]
[400041953,1767048640921,-500.0,0.00021917,2]
[400041955,1767048640930,-496.98851051,0.00021917,2]
[400041957,1767048640939,-500.0,0.00021917,2]
[400041959,1767048640948,-500.0,0.00021917,2]
[400041961,1767048640958,-893.04,0.00021917,2]
[400041963,1767048640966,-350.93019086,0.00021917,2]
[400041964,1767048640975,-500.0,0.00021917,2]
[400041966,1767048640984,-225.73156657,0.00021917,2]
[400041979,1767048641092,-538.10671884,0.00021917,2]
[400041981,1767048641102,-423.95359119,0.00021917,2]
[400041983,1767048641114,-500.0,0.00021917,2]
[400041985,1767048641123,-529.67556435,0.00021917,2]
[400041987,1767048641133,-500.0,0.00021917,2]
[400041989,1767048641142,-500.0,0.00021917,2]
[400041991,1767048641150,-500.0,0.00021917,2]
[400041993,1767048641160,-500.0,0.00021917,2]
[400041995,1767048641169,-500.0,0.00021917,2]
[400041997,1767048641178,-195.74438465,0.00021917,2]
[400041999,1767048641188,-426.86495862,0.00021917,2]
[400042001,1767048641197,-512.09352173,0.00021917,2]
[400042003,1767048641206,-488.28774234,0.00021917,2]
[400042005,1767048641215,-500.99596563,0.00021917,2]
[400042007,1767048641226,-273.51615063,0.00021917,2]
[400042009,1767048641235,-491.37863043,0.00021917,2]
[400042011,1767048641244,-500.0,0.00021917,2]
[400042013,1767048641254,-406.98709601,0.00021917,2]
[400042015,1767048641263,-306.74492455,0.00021917,2]
[400042017,1767048641273,-540.44375359,0.00021917,2]
[400042019,1767048641282,-255.36194022,0.00021917,2]
[400042021,1767048641291,-500.0,0.00021917,2]
[400042023,1767048641300,-363.63724967,0.00021917,2]
[400042025,1767048641309,-500.0,0.00021917,2]
[400042027,1767048641317,-250.86157752,0.00021917,2]
[400042029,1767048641327,-610.95408846,0.00021917,2]
[400042031,1767048641335,-186.37266074,0.00021917,2]
[400042033,1767048641344,-500.0,0.00021917,2]
[400042035,1767048641353,-500.0,0.00021917,2]
[400042037,1767048641362,-456.75047125,0.00021917,2]
[400042038,1767048641371,-349.44841034,0.00021917,2]
[400042040,1767048641381,-443.82116466,0.00021917,2]
[400042042,1767048641391,-500.0,0.00021917,2]
[400042044,1767048641399,-500.0,0.00021917,2]
[400042045,1767048641408,-268.02262656,0.00021917,2]
[400042047,1767048641417,-419.21827466,0.00021917,2]
[400042049,1767048641426,-368.0625331,0.00021917,2]
[400042051,1767048641436,-497.71228405,0.00021917,2]
[400042052,1767048641445,-501.7554646,0.00021917,2]
[400042054,1767048641458,-500.0,0.00021917,2]
[400042056,1767048641468,-573.02929433,0.00021917,2]
[400042058,1767048641477,-561.91723085,0.00021917,2]
[400042060,1767048641486,-403.68063183,0.00021917,2]
[400042062,1767048641495,-500.0,0.00021917,2]
[400042064,1767048641504,-500.0,0.00021917,2]
[400042066,1767048641513,-538.10185872,0.00021917,2]
[400042068,1767048641523,-314.14014211,0.00021917,2]
[400042070,1767048641532,-539.0850877,0.00021917,2]
[400042071,1767048641541,-506.42329108,0.00021917,2]
[400042073,1767048641550,-420.23607407,0.00021917,2]
[400042075,1767048641559,-336.11535103,0.00021917,2]
[400042077,1767048641568,-500.0,0.00021917,2]
[400042079,1767048641577,-500.0,0.00021917,2]
[400042080,1767048641587,-221.67463703,0.00021917,2]
[400042081,1767048641595,-634.2289801,0.00021917,2]
[400042082,1767048641604,-365.10181785,0.00021917,2]
[400042083,1767048641613,-215.83814389,0.00021917,2]
[400042084,1767048641622,-477.6934302,0.00021917,2]
[400042085,1767048641631,-487.77119636,0.00021917,2]
[400042086,1767048641641,-485.56870717,0.00021917,2]
[400042087,1767048641650,-228.09003205,0.00021917,2]
[400042088,1767048641659,-376.73083576,0.00021917,2]
[400042089,1767048641669,-488.48967991,0.00021917,2]
[400042090,1767048641678,-187.90611098,0.00021917,2]
[400042091,1767048641687,-203.35647701,0.00021917,2]
[400042092,1767048641696,-315.15556904,0.00021917,2]
[400042093,1767048641704,-500.0,0.00021917,2]
[400042094,1767048641713,-290.15325278,0.00021917,2]
[400042095,1767048641722,-461.88261165,0.00021917,2]
[400042096,1767048641732,-358.42368919,0.00021917,2]
[400042097,1767048641741,-268.64102064,0.00021917,2]
[400042098,1767048641750,-496.84809073,0.00021917,2]
[400042099,1767048641759,-465.70568753,0.00021917,2]
[400042100,1767048641768,-1000.0,0.00021917,2]
[400042101,1767048641778,-500.0,0.00021917,2]
[400042102,1767048641787,-323.76444914,0.00021917,2]
[400042103,1767048641796,-182.03330599,0.00021917,2]
[400042104,1767048641805,-500.0,0.00021917,2]
[400042105,1767048641814,-275.06643056,0.00021917,2]
[400042106,1767048641824,-178.31606175,0.00021917,2]
[400042107,1767048641833,-409.43073117,0.00021917,2]
[400042108,1767048641841,-480.20810443,0.00021917,2]
[400042109,1767048641851,-500.0,0.00021917,2]
[400042110,1767048641860,-500.0,0.00021917,2]
[400042111,1767048641869,-487.22662135,0.00021917,2]
[400042112,1767048641878,-495.84474953,0.00021917,2]
[400042113,1767048641887,-181.60437423,0.00021917,2]
[400042114,1767048641896,-488.04044067,0.00021917,2]
[400042115,1767048641905,-461.85768299,0.00021917,2]
[400042116,1767048641914,-228.49898026,0.00021917,2]
[400042117,1767048641923,-500.0,0.00021917,2]
[400042118,1767048641933,-150.04324671,0.00021917,2]
[400042119,1767048641942,-291.75959071,0.00021917,2]
[400042120,1767048641951,-462.54292197,0.00021917,2]
[400042121,1767048641961,-426.82751742,0.00021917,2]
[400042122,1767048641970,-232.05339944,0.00021917,2]
[400042123,1767048641980,-167.89015727,0.00021917,2]
[400042124,1767048641990,-299.02872134,0.00021917,2]
[400042125,1767048641999,-248.92613817,0.00021917,2]
[400042126,1767048642008,-150.4825193,0.00021917,2]
[400042127,1767048642017,-230.99483231,0.00021917,2]
[400042128,1767048642027,-500.0,0.00021917,2]
[400042129,1767048642035,-154.63759183,0.00021917,2]
[400042130,1767048642045,-506.29868568,0.00021917,2]
[400042131,1767048642054,-188.57203443,0.00021917,2]
[400042132,1767048642063,-4821.6,0.00021917,2]
[400042133,1767048642072,-250.55772468,0.00021917,2]
[400042134,1767048642083,-253.63102759,0.00021917,2]
[400042135,1767048642092,-349.87778429,0.00021917,2]
[400042136,1767048642101,-516.4273939,0.00021917,2]
[400042137,1767048642110,-598.60330821,0.00021917,2]
[400042138,1767048642120,-172.9864347,0.00021917,2]
[400042139,1767048642129,-199.91617465,0.00021917,2]
[400042140,1767048642138,-278.49623661,0.00021917,2]
[400042141,1767048642147,-404.6474823,0.00021917,2]
[400042142,1767048642156,-342.84833664,0.00021917,2]
[400042143,1767048642166,-447.25692417,0.00021917,2]
[400042144,1767048642175,-262.71392186,0.00021917,2]
[400042145,1767048642184,-249.77890113,0.00021917,2]
[400042146,1767048642193,-273.04367163,0.00021917,2]
[400042147,1767048642202,-385.30648605,0.00021917,2]
[400042148,1767048642212,-500.0,0.00021917,2]
[400042149,1767048642222,-397.08280438,0.00021917,2]
[400042150,1767048642231,-226.63513394,0.00021917,2]
[400042151,1767048642240,-287.89513794,0.00021917,2]
[400042152,1767048642251,-507.26557414,0.00021917,2]
[400042153,1767048642260,-320.62728522,0.00021917,2]
[400042154,1767048642270,-460.71443357,0.00021917,2]
[400042155,1767048642279,-480.0,0.00021917,2]
[400042156,1767048642288,-208.47163128,0.00021917,2]
[400042157,1767048642297,-380.96173072,0.00021917,2]
[400042158,1767048642306,-288.92186598,0.00021917,2]
[400042159,1767048642316,-273.4647335,0.00021917,2]
[400042160,1767048642325,-250.41947489,0.00021917,2]
[400042161,1767048642334,-479.8863713,0.00021917,2]
[400042162,1767048642343,-472.97678502,0.00021917,2]
[400042163,1767048642352,-267.7999855,0.00021917,2]
[400042164,1767048642361,-500.0,0.00021917,2]
[400042165,1767048642370,-276.96921568,0.00021917,2]
[400042166,1767048642379,-463.44162143,0.00021917,2]
[400042167,1767048642388,-460.77258881,0.00021917,2]
[400042168,1767048642397,-513.0,0.00021917,2]
[400042169,1767048642407,-208.13778615,0.00021917,2]
[400042170,1767048642416,-339.11993172,0.00021917,2]
[400042171,1767048642427,-264.5012368,0.00021917,2]
[400042172,1767048642436,-429.68058131,0.00021917,2]
[400042173,1767048642450,-361.59023769,0.00021917,2]
[400042174,1767048642460,-500.0,0.00021917,2]
[400042175,1767048642471,-500.0,0.00021917,2]
[400042176,1767048642481,-476.97803324,0.00021917,2]
[400042177,1767048642491,-426.17029981,0.00021917,2]
[400042179,1767048642500,-199.94677936,0.00021917,2]
[400042180,1767048642509,-413.5855328,0.00021917,2]
[400042182,1767048642519,-185.23037313,0.00021917,2]
[400042183,1767048642530,-251.01134055,0.00021917,2]
[400042184,1767048642539,-500.0,0.00021917,2]
[400042186,1767048642548,-248.87860646,0.00021917,2]
[400042188,1767048642557,-419.48502169,0.00021917,2]
[400042190,1767048642567,-172.47455784,0.00021917,2]
[400042192,1767048642577,-235.4861929,0.00021917,2]
[400042193,1767048642586,-464.71326591,0.00021917,2]
[400042194,1767048642595,-500.0,0.00021917,2]
[400042195,1767048642605,-500.0,0.00021917,2]
[400042196,1767048642614,-500.0,0.00021917,2]
[400042198,1767048642623,-500.0,0.00021917,2]
[400042200,1767048642632,-380.6213759,0.00021917,2]
[400042202,1767048642642,-305.52353352,0.00021917,2]
[400042204,1767048642651,-501.1,0.00021917,2]
[400042206,1767048642660,-398.66824558,0.00021917,2]
[400042207,1767048642670,-262.88897779,0.00021917,2]
[400042208,1767048642679,-393.93519273,0.00021917,2]
[400042209,1767048642688,-471.93365652,0.00021917,2]
[400042210,1767048642697,-878.29,0.00021917,2]
[400042211,1767048642706,-680.8,0.00021917,2]
[400042212,1767048642715,-275.42632348,0.00021917,2]
[400042213,1767048642724,-488.22762557,0.00021917,2]
[400042214,1767048642733,-500.0,0.00021917,2]
[400042215,1767048642742,-394.44798284,0.00021917,2]
[400042216,1767048642751,-621.07135702,0.00021917,2]
[400042217,1767048642761,-173.42928672,0.00021917,2]
[400042218,1767048642770,-500.0,0.00021917,2]
[400042219,1767048642780,-452.63889928,0.00021917,2]
[400042220,1767048642789,-385.14357929,0.00021917,2]
[400042221,1767048642799,-378.82197893,0.00021917,2]
[400042222,1767048642808,-275.38899138,0.00021917,2]
[400042223,1767048642818,-174.43765319,0.00021917,2]
[400042224,1767048642827,-262.68140088,0.00021917,2]
[400042225,1767048642836,-441.85119835,0.00021917,2]
[400042226,1767048642845,-441.07486283,0.00021917,2]
[400042227,1767048642855,-576.74851698,0.00021917,2]
[400042228,1767048642864,-485.13,0.00021917,2]
[400042229,1767048642873,-476.5122698,0.00021917,2]
[400042230,1767048642882,-500.0,0.00021917,2]
[400042231,1767048642891,-583.56068195,0.00021917,2]
[400042232,1767048642901,-500.0,0.00021917,2]
[400042233,1767048642910,-500.0,0.00021917,2]
[400042234,1767048642919,-299.9120085,0.00021917,2]
[400042235,1767048642929,-219.25366099,0.00021917,2]
[400042236,1767048642938,-463.8590192,0.00021917,2]
[400042237,1767048642948,-243.7655413,0.00021917,2]
[400042238,1767048642957,-289.91132384,0.00021917,2]
[400042239,1767048642967,-482.00582969,0.00021917,2]
[400042240,1767048642977,-416.22411128,0.00021917,2]
[400042241,1767048642986,-478.48389396,0.00021917,2]
[400042242,1767048642996,-449.17785108,0.00021917,2]
[400042243,1767048643005,-504.68438666,0.00021917,2]
[400042244,1767048643014,-439.14977885,0.00021917,2]
[400042245,1767048643024,-475.74346308,0.00021917,2]
[400042246,1767048643033,-244.19042592,0.00021917,2]
[400042247,1767048643042,-286.86271311,0.00021917,2]
[400042248,1767048643051,-493.05979913,0.00021917,2]
[400042249,1767048643061,-500.0,0.00021917,2]
[400042250,1767048643070,-522.88825418,0.00021917,2]
[400042251,1767048643080,-496.32975888,0.00021917,2]
[400042252,1767048643089,-213.22941767,0.00021917,2]
[400042253,1767048643098,-223.12119079,0.00021917,2]
[400042254,1767048643107,-184.88251798,0.00021917,2]
[400042255,1767048643116,-253.53306599,0.00021917,2]
[400042256,1767048643125,-500.0,0.00021917,2]
[400042257,1767048643134,-250.76892888,0.00021917,2]
[400042258,1767048643143,-994.31,0.00021917,2]
[400042259,1767048643153,-500.0,0.00021917,2]
[400042260,1767048643162,-354.63854456,0.00021917,2]
[400042261,1767048643171,-464.19137506,0.00021917,2]
[400042262,1767048643180,-345.23126733,0.00021917,2]
[400042263,1767048643189,-264.52877309,0.00021917,2]
[400042264,1767048643198,-500.0,0.00021917,2]
[400042265,1767048643207,-348.06819212,0.00021917,2]
[400042266,1767048643216,-404.40678334,0.00021917,2]
[400042267,1767048643225,-502.66559039,0.00021917,2]
[400042268,1767048643234,-320.1998631,0.00021917,2]
[400042269,1767048643243,-200.01707268,0.00021917,2]
[400042270,1767048643253,-463.66887211,0.00021917,2]
[400042271,1767048643263,-231.78420349,0.00021917,2]
[400042272,1767048643272,-500.0,0.00021917,2]
[400042273,1767048643281,-500.0,0.00021917,2]
[400042274,1767048643291,-360.97170815,0.00021917,2]
[400042275,1767048643301,-161.18946542,0.00021917,2]
[400042276,1767048643310,-570.17,0.00021917,2]
[400042277,1767048643319,-224.13773528,0.00021917,2]
[400042278,1767048643328,-184.817009,0.00021917,2]
[400042279,1767048643337,-574.48534634,0.00021917,2]
[400042280,1767048643346,-160.0,0.00021964,2]
[400042281,1767048643356,-500.0,0.00021971,2]
[400042282,1767048643365,-192.1,0.00022,2]
[400042283,1767048643374,-1146.72,0.00022,7]
[400042284,1767048643385,-500.0,0.00022072,2]
[400042285,1767048643394,-247.4,0.00022082,2]
[400042286,1767048643498,-500.0,0.00022191,2]
[400042287,1767048643509,-500.0,0.00022191,2]
[400042288,1767048643518,-1297.96752771,0.00022191,2]
[400042289,1767048643528,-500.0,0.00022191,2]
[400042290,1767048643537,-500.0,0.00022191,2]
[400042291,1767048643547,-500.0,0.00022191,2]
[400042293,1767048643556,-1000.0,0.00022191,2]
[400042295,1767048643566,-502.9,0.00022191,2]
[400042296,1767048643576,-500.0,0.00022191,2]
[400042297,1767048643586,-893.04,0.00022191,2]
[400042298,1767048643595,-500.0,0.00022191,2]
[400042299,1767048643606,-4821.6,0.00022191,2]
[400042300,1767048643616,-500.0,0.00022191,2]
[400042301,1767048643626,-501.1,0.00022191,2]
[400042302,1767048643637,-878.29,0.00022191,2]
[400042303,1767048643646,-680.8,0.00022191,2]
[400042304,1767048643656,-500.0,0.00022191,2]
[400042305,1767048643666,-500.0,0.00022191,2]
[400042306,1767048643675,-500.0,0.00022191,2]
[400042307,1767048643685,-418.82110015,0.00022191,2]
[400042308,1767048643694,-500.0,0.00022191,2]
[400042309,1767048643704,-994.31,0.00022191,2]
[400042310,1767048643714,-500.0,0.00022191,2]
[400042311,1767048643724,-500.0,0.00022191,2]
[400042312,1767048643733,-570.17,0.00022191,2]
[400042313,1767048643742,-500.0,0.00022465,2]
[400042314,1767048643752,-500.0,0.00022465,2]
[400042315,1767048643761,-1297.96752771,0.00022465,2]
[400042316,1767048643771,-500.0,0.00022465,2]
[400042317,1767048643780,-500.0,0.00022465,2]
[400042318,1767048643789,-500.0,0.00022465,2]
[400042319,1767048643799,-1000.0,0.00022465,2]
[400042320,1767048643808,-502.9,0.00022465,2]
[400042321,1767048643818,-893.04,0.00022465,2]
[400042322,1767048643828,-500.0,0.00022465,2]
[400042323,1767048643837,-4821.6,0.00022465,2]
[400042324,1767048643846,-500.0,0.00022465,2]
[400042325,1767048643855,-501.1,0.00022465,2]
[400042326,1767048643864,-878.29,0.00022465,2]
[400042327,1767048643873,-680.8,0.00022465,2]
[400042328,1767048643882,-500.0,0.00022465,2]
[400042329,1767048643892,-500.0,0.00022465,2]
[400042330,1767048643901,-500.0,0.00022465,2]
[400042331,1767048643910,-994.31,0.00022465,2]
[400042332,1767048643920,-498.10670326,0.00022465,2]
[400042333,1767048643929,-570.17,0.00022465,2]
[400042334,1767048643938,-1000.0,0.00022494,10]
[400042335,1767048643948,-492.0,0.00022494,10]
[400042336,1767048643957,-11370.66,0.000225,2]
[400042337,1767048643967,-260.0,0.00022512,2]
[400042338,1767048643976,-500.0,0.00022739,2]
[400042339,1767048643986,-500.0,0.00022739,2]
[400042340,1767048643995,-1297.96752771,0.00022739,2]
[400042341,1767048644004,-500.0,0.00022739,2]
[400042342,1767048644014,-500.0,0.00022739,2]
[400042343,1767048644023,-500.0,0.00022739,2]
[400042344,1767048644032,-568.41416315,0.00022739,2]
[400042345,1767048644041,-502.9,0.00022739,2]
[400042346,1767048644051,-893.04,0.00022739,2]
[400042347,1767048644060,-500.0,0.00022739,2]
[400042348,1767048644069,-4821.6,0.00022739,2]
[400042349,1767048644078,-500.0,0.00022739,2]
[400042350,1767048644087,-501.1,0.00022739,2]
[400042351,1767048644096,-878.29,0.00022739,2]
[400042352,1767048644105,-680.8,0.00022739,2]
[400042353,1767048644115,-500.0,0.00022739,2]
[400042354,1767048644124,-500.0,0.00022739,2]
[400042355,1767048644136,-500.0,0.00022739,2]
[400042356,1767048644145,-994.31,0.00022739,2]
[400042357,1767048644154,-570.17,0.00022739,2]
[400042358,1767048644163,-500.0,0.00022834,2]
[400042359,1767048644172,-500.0,0.00022985,2]
[400042360,1767048644181,-500.0,0.00022985,2]
[400042361,1767048644190,-481.64675475,0.00022985,2]
[400042362,1767048644199,-500.0,0.00023013,2]
[400042363,1767048644208,-500.0,0.00023013,2]
[400042364,1767048644217,-1297.96752771,0.00023013,2]
[400042365,1767048644226,-500.0,0.00023013,2]
[400042366,1767048644235,-500.0,0.00023013,2]
[400042367,1767048644244,-500.0,0.00023013,2]
[400042368,1767048644253,-502.9,0.00023013,2]
[400042369,1767048644261,-893.04,0.00023013,2]
[400042370,1767048644271,-500.0,0.00023013,2]
[400042371,1767048644280,-4821.6,0.00023013,2]
[400042372,1767048644288,-501.1,0.00023013,2]
[400042373,1767048644297,-878.29,0.00023013,2]
[400042374,1767048644306,-680.8,0.00023013,2]
[400042375,1767048644316,-500.0,0.00023013,2]
[400042376,1767048644324,-500.0,0.00023013,2]
[400042377,1767048644334,-500.0,0.00023013,2]
[400042378,1767048644343,-994.31,0.00023013,2]
[400042379,1767048644352,-570.17,0.00023013,2]
[400042380,1767048644361,-500.0,0.00023036,2]
[400042381,1767048644370,-360.0,0.0002306,2]
[400042382,1767048644379,-500.0,0.00023094,2]
[400042383,1767048644389,-247.4,0.00023117,2]
[400042384,1767048644398,-500.0,0.00023219,2]
[400042385,1767048644407,-500.0,0.00023287,2]
[400042386,1767048644416,-587.13463047,0.00023287,2]
[400042387,1767048644425,-1297.96752771,0.00023287,2]
[400042388,1767048644434,-500.0,0.00023287,2]
[400042389,1767048644444,-500.0,0.00023287,2]
[400042390,1767048644457,-500.0,0.00023287,2]
[400042391,1767048644466,-502.9,0.00023287,2]
[400042392,1767048644475,-893.04,0.00023287,2]
[400042393,1767048644484,-500.0,0.00023287,2]
[400042394,1767048644494,-4821.6,0.00023287,2]
[400042395,1767048644504,-501.1,0.00023287,2]
[400042396,1767048644513,-878.29,0.00023287,2]
[400042397,1767048644523,-680.8,0.00023287,2]
[400042398,1767048644534,-500.0,0.00023287,2]
[400042399,1767048644543,-500.0,0.00023287,2]
[400042401,1767048644552,-500.0,0.00023287,2]
[400042403,1767048644561,-994.31,0.00023287,2]